[Event "Kragero Resort Chess B 2019"]
[Site "Kragero"]
[Date "2019.02.23"]
[Round "6.4"]
[White "Magnusdottir, Veronika Steinunn"]
[Black "Austad, Eirik"]
[Result "1-0"]
[ECO "B19"]
[WhiteElo "1740"]
[BlackElo "1629"]
[Annotator "NA RC"]
[PlyCount "107"]
[EventDate "2019.02.20"]
[EventType "swiss"]
[EventCountry "NOR"]
[SourceTitle "playchess.com"]
[Source "ChessBase"]
[SourceQuality "1"]
[TimeControl "5400+30"]

1. e4 {[%emt 0:01:10]} c6 {[%emt 0:00:08]} 2. d4 {[%emt 0:00:05]} d5 {[%emt 0:00:05]} 3. Nc3 {[%emt 0:00:05]} dxe4 {[%emt 0:00:19]} 4. Nxe4 {[%emt 0:00:05]} Bf5 {[%emt 0:00:14]} 5. Ng3 {[%emt 0:00:06]} Bg6 {[%emt 0:00:08]} 6. Nf3 {[%emt 0:00:05]} Nd7 {[%emt 0:00:26]} 7. h4 {[%emt 0:00:14]} h6 {[%emt 0:00:30]} 8. h5 {[%emt 0:00:04]} Bh7 {[%emt 0:00:08]} 9. Bd3 {[%emt 0:00:07]} Bxd3 {[%emt 0:00:09]} 10. Qxd3 {[%emt 0:00:05]} Ngf6 {[%emt 0:00:13]} 11. Bd2 {[%emt 0:00:22]} e6 {[%emt 0:00:16]} 12. O-O-O {[%emt 0:00:20]} Qc7 {[%emt 0:03:07]} 13. Kb1 {[%emt 0:05:05]} O-O-O {[%emt 0:05:34]} 14. Ne4 {[%emt 0:22:20]} Nxe4 {[%emt 0:02:19]} 15. Qxe4 {[%emt 0:00:05]} Nf6 {[%emt 0:01:36]} 16. Qe2 {[%emt 0:00:08]} Bd6 {[%emt 0:08:46]} 17. g3 {[%emt 0:07:22]} Rhe8 {[%emt 0:07:36]} 18. Qc4 {[%emt 0:07:44]} Ng4 {[%emt 0:04:12]} 19. Rhf1 {[%emt 0:14:03]} e5 {[%emt 0:09:07]} 20. dxe5 {[%emt 0:00:16]} Nxe5 {[%emt 0:00:33]} 21. Nxe5 {[%emt 0:00:24]} Bxe5 {[%emt 0:02:05]} 22. Be3 {[%emt 0:01:55]} b6 {[%emt 0:10:25]} 23. Rfe1 {[%emt 0:08:46]} Kb7 {[%emt 0:07:36]} 24. a3 {[%emt 0:06:59]} Rxd1+ {[%emt 0:02:23]} 25. Rxd1 {[%emt 0:00:07]} Re7 {[%emt 0:00:50]} 26. Qg4 {[%emt 0:06:12]} Qc8 {[%emt 0:01:59]} 27. Qb4 {[%emt 0:06:39]} Qe6 {[%emt 0:02:22]} 28. a4 {[%emt 0:00:43]} Rd7 {[%emt 0:02:09]} 29. Re1 {[%emt 0:00:28]} Qd6 {[%emt 0:03:02]} 30. Qb3 {[%emt 0:02:00]} Qd5 {[%emt 0:01:27]} 31. Qxd5 {[%emt 0:03:20]} Rxd5 {[%emt 0:00:25]} 32. c4 {[%emt 0:01:15]} Ra5 {[%emt 0:04:19]} 33. Bd2 {[%emt 0:00:57]} Bd6 {[%emt 0:07:10]} 34. Bxa5 {[%emt 0:00:09]} bxa5 {[%emt 0:00:03]} 35. Kc2 {[%emt 0:00:19]} Kc7 {[%emt 0:00:20]} 36. Kd3 {[%emt 0:00:57]} Kd7 {[%emt 0:00:28]} 37. Kd4 {[%emt 0:00:41]} Be7 {[%emt 0:00:36]} 38. b3 {[%emt 0:00:56]} Bf6+ {[%emt 0:00:57]} 39. Kc5 {[%emt 0:00:52]} Bc3 {[%emt 0:00:11]} 40. Rd1+ {[%emt 0:00:13]} Kc7 {[%emt 0:00:05]} 41. f4 {[%emt 0:01:18]} Bb4+ {[%emt 0:00:10]} 42. Kd4 {[%emt 0:00:06]} Kd7 {[%emt 0:00:13]} 43. Ke5+ {[%emt 0:00:22]} Ke7 {[%emt 0:00:25]} 44. g4 {[%emt 0:00:08]} g6 {[%emt 0:01:07]} 45. hxg6 {[%emt 0:00:44]} fxg6 {[%emt 0:00:10]} 46. f5 {[%emt 0:02:42]} Bc3+ {[%emt 0:00:23]} 47. Ke4 {[%emt 0:00:09]} h5 {[%emt 0:00:36]} 48. fxg6 {[%emt 0:00:41]} hxg4 {[%emt 0:00:18]} 49. Kf4 {[%emt 0:00:10]} Kf6 {[%emt 0:00:28]} 50. Rd6+ {[%emt 0:00:17]} Ke7 {[%emt 0:00:12]} 51. Rxc6 {[%emt 0:00:08]} Kd7 {[%emt 0:00:16]} 52. Ra6 {[%emt 0:00:12]} Bd4 {[%emt 0:00:11]} 53. g7 {[%emt 0:00:21]} Bxg7 {[%emt 0:00:06]} 54. Rxa7+ {[%emt 0:00:06]} 1-0

[Event "Kragero Resort Chess B 2019"]
[Site "Kragero"]
[Date "2019.02.23"]
[Round "6.5"]
[White "Gronn, Embla Ekeland"]
[Black "Arntsen, Frode"]
[Result "0-1"]
[ECO "D01"]
[WhiteElo "1633"]
[BlackElo "1718"]
[Annotator "NA RC"]
[PlyCount "56"]
[EventDate "2019.02.20"]
[EventType "swiss"]
[EventCountry "NOR"]
[SourceTitle "playchess.com"]
[Source "ChessBase"]
[SourceQuality "1"]
[TimeControl "5400+30"]

1. d4 {[%emt 0:00:00]} Nf6 {[%emt 0:00:00]} 2. Nc3 {[%emt 0:00:00]} d5 {[%emt 0:00:09]} 3. Bg5 {[%emt 0:00:00]} Nbd7 {[%emt 0:00:54]} 4. Nf3 {[%emt 0:03:38]} g6 {[%emt 0:01:49]} 5. e3 {[%emt 0:02:47]} Bg7 {[%emt 0:00:33]} 6. Bd3 {[%emt 0:00:49]} O-O {[%emt 0:00:48]} 7. O-O {[%emt 0:02:35]} c6 {[%emt 0:18:11]} 8. Re1 {[%emt 0:05:09]} Re8 {[%emt 0:07:50]} 9. Re2 {[%emt 0:07:23]} e5 {[%emt 0:08:45]} 10. dxe5 {[%emt 0:05:52]} Nxe5 {[%emt 0:01:08]} 11. Nxe5 {[%emt 0:00:26]} Rxe5 {[%emt 0:00:22]} 12. f4 {[%emt 0:19:59]} Re8 {[%emt 0:02:38]} 13. f5 {[%emt 0:06:39]} Qb6 {[%emt 0:04:21]} 14. Rb1 {[%emt 0:14:03]} Ne4 {[%emt 0:08:28]} 15. Bxe4 {[%emt 0:06:34]} dxe4 {[%emt 0:00:41]} 16. f6 {[%emt 0:01:13]} Bf8 {[%emt 0:00:44]} 17. Qe1 {[%emt 0:04:10]} h6 {[%emt 0:14:18]} 18. Bf4 {[%emt 0:03:38]} Qc5 {[%emt 0:07:03]} 19. Rd1 {[%emt 0:02:40]} Bg4 {[%emt 0:03:38]} 20. Rd4 {[%emt 0:06:12]} Bxe2 {[%emt 0:01:10]} 21. Qxe2 {[%emt 0:00:25]} g5 {[%emt 0:06:09]} 22. Nxe4 {[%emt 0:02:08]} Rxe4 {[%emt 0:00:22]} 23. Rxe4 {[%emt 0:00:27]} gxf4 {[%emt 0:00:19]} 24. Rxf4 {[%emt 0:00:19]} Re8 {[%emt 0:04:39]} 25. Qg4+ {[%emt 0:01:59]} Kh8 {[%emt 0:02:19]} 26. Qd7 {[%emt 0:02:50]} Qxe3+ {[%emt 0:00:28]} 27. Rf2 {[%emt 0:00:02]} Qe1+ {[%emt 0:00:29]} 28. Rf1 {[%emt 0:00:02]} Bc5+ {[%emt 0:00:18]} 0-1

[Event "Kragero Resort Chess B 2019"]
[Site "Kragero"]
[Date "2019.02.23"]
[Round "6.6"]
[White "Hausken, Andreas Skrede"]
[Black "Bernstein, Jonas August"]
[Result "1-0"]
[ECO "B11"]
[WhiteElo "1752"]
[BlackElo "1744"]
[Annotator "NA RC"]
[PlyCount "85"]
[EventDate "2019.02.20"]
[EventType "swiss"]
[EventCountry "NOR"]
[SourceTitle "playchess.com"]
[Source "ChessBase"]
[SourceQuality "1"]
[TimeControl "5400+30"]

1. e4 {[%emt 0:00:00]} c6 {[%emt 0:00:05]} 2. Nf3 {[%emt 0:00:00]} d5 {[%emt 0:00:49]} 3. Nc3 {[%emt 0:00:00]} Bg4 {[%emt 0:00:05]} 4. h3 {[%emt 0:00:01]} Bxf3 {[%emt 0:00:06]} 5. Qxf3 {[%emt 0:00:09]} e6 {[%emt 0:00:04]} 6. d3 {[%emt 0:03:17]} g6 {[%emt 0:02:11]} 7. g3 {[%emt 0:03:31]} Bg7 {[%emt 0:00:08]} 8. Bg2 {[%emt 0:00:22]} Ne7 {[%emt 0:00:20]} 9. Bg5 {[%emt 0:04:03]} h6 {[%emt 0:04:39]} 10. Bf6 {[%emt 0:05:32]} O-O {[%emt 0:04:25]} 11. Bxg7 {[%emt 0:10:08]} Kxg7 {[%emt 0:00:11]} 12. O-O-O {[%emt 0:00:29]} Nd7 {[%emt 0:04:24]} 13. Ne2 {[%emt 0:05:13]} a5 {[%emt 0:07:51]} 14. g4 {[%emt 0:03:56]} b5 {[%emt 0:04:37]} 15. Qg3 {[%emt 0:04:38]} b4 {[%emt 0:01:52]} 16. f4 {[%emt 0:02:22]} a4 {[%emt 0:01:30]} 17. f5 {[%emt 0:01:22]} b3 {[%emt 0:03:55]} 18. cxb3 {[%emt 0:01:52]} axb3 {[%emt 0:00:13]} 19. axb3 {[%emt 0:03:36]} e5 {[%emt 0:20:37]} 20. Rdf1 {[%emt 0:04:01]} f6 {[%emt 0:15:57]} 21. fxg6 {[%emt 0:01:28]} d4 {[%emt 0:01:13]} 22. h4 {[%emt 0:06:50]} Qb6 {[%emt 0:01:25]} 23. Kc2 {[%emt 0:04:48]} Qc5+ {[%emt 0:06:56]} 24. Kb1 {[%emt 0:05:02]} Ra5 {[%emt 0:03:29]} 25. Rc1 {[%emt 0:00:37]} Qb6 {[%emt 0:02:18]} 26. g5 {[%emt 0:07:00]} Qxb3 {[%emt 0:03:46]} 27. Nxd4 {[%emt 0:02:00]} exd4 {[%emt 0:03:31]} 28. Qd6 {[%emt 0:00:42]} Nxg6 {[%emt 0:05:19]} 29. Qxd7+ {[%emt 0:00:55]} Rf7 {[%emt 0:00:31]} 30. gxf6+ {[%emt 0:00:18]} Kh7 {[%emt 0:00:54]} 31. Qxd4 {[%emt 0:12:01]} Rfa7 {[%emt 0:00:25]} 32. Qxa7+ {[%emt 0:00:16]} Rxa7 {[%emt 0:00:03]} 33. Rc3 {[%emt 0:00:22]} Qf7 {[%emt 0:00:53]} 34. Rf1 {[%emt 0:04:07]} Nxh4 {[%emt 0:00:22]} 35. Bh3 {[%emt 0:00:01]} Ng6 {[%emt 0:00:42]} 36. d4 {[%emt 0:00:16]} Ra4 {[%emt 0:01:03]} 37. Rxc6 {[%emt 0:01:51]} Rxd4 {[%emt 0:00:24]} 38. Be6 {[%emt 0:00:10]} Qb7 {[%emt 0:00:41]} 39. Bd5 {[%emt 0:00:20]} Qb5 {[%emt 0:00:50]} 40. Rc7+ {[%emt 0:00:37]} Kh8 {[%emt 0:00:23]} 41. Rc8+ {[%emt 0:00:06]} Kh7 {[%emt 0:00:15]} 42. Bg8+ {[%emt 0:00:04]} Kh8 {[%emt 0:00:44]} 43. Bc4+ {[%emt 0:00:06]} 1-0

[Event "Kragero Resort Chess B 2019"]
[Site "Kragero"]
[Date "2019.02.23"]
[Round "6.8"]
[White "Rynning, Rune Kleiven"]
[Black "Sivertsen, Jarle"]
[Result "1-0"]
[ECO "B40"]
[WhiteElo "1542"]
[BlackElo "1605"]
[Annotator "NA RC"]
[PlyCount "131"]
[EventDate "2019.02.20"]
[EventType "swiss"]
[EventCountry "NOR"]
[SourceTitle "playchess.com"]
[Source "ChessBase"]
[SourceQuality "1"]
[TimeControl "5400+30"]

1. e4 {[%emt 0:00:00]} c5 {[%emt 0:01:19]} 2. Nf3 {[%emt 0:00:00]} e6 {[%emt 0:00:07]} 3. d4 {[%emt 0:00:04]} cxd4 {[%emt 0:00:04]} 4. Nxd4 {[%emt 0:00:07]} Nf6 {[%emt 0:00:04]} 5. Nc3 {[%emt 0:00:10]} Bb4 {[%emt 0:00:03]} 6. f3 {[%emt 0:06:38]} Nc6 {[%emt 0:00:40]} 7. Nxc6 {[%emt 0:04:16]} bxc6 {[%emt 0:00:08]} 8. Qd4 {[%emt 0:01:57]} Qb6 {[%emt 0:03:20]} 9. Qf2 {[%emt 0:07:44]} Qxf2+ {[%emt 0:06:22]} 10. Kxf2 {[%emt 0:00:03]} Bxc3 {[%emt 0:00:07]} 11. bxc3 {[%emt 0:00:13]} d5 {[%emt 0:00:05]} 12. e5 {[%emt 0:04:03]} Nd7 {[%emt 0:00:11]} 13. f4 {[%emt 0:00:59]} O-O {[%emt 0:00:16]} 14. Ba3 {[%emt 0:01:50]} c5 {[%emt 0:01:10]} 15. Bb5 {[%emt 0:03:43]} Rb8 {[%emt 0:04:54]} 16. Bxd7 {[%emt 0:00:42]} Bxd7 {[%emt 0:00:05]} 17. Bxc5 {[%emt 0:03:15]} Rfc8 {[%emt 0:00:04]} 18. Bxa7 {[%emt 0:02:20]} Rb2 {[%emt 0:00:24]} 19. Bd4 {[%emt 0:12:58]} Rxc2+ {[%emt 0:00:17]} 20. Kg3 {[%emt 0:06:06]} Rb8 {[%emt 0:02:41]} 21. Rhb1 {[%emt 0:01:52]} Rbb2 {[%emt 0:01:56]} 22. Rxb2 {[%emt 0:00:41]} Rxb2 {[%emt 0:00:04]} 23. a4 {[%emt 0:02:42]} Bc8 {[%emt 0:02:02]} 24. a5 {[%emt 0:01:59]} Ba6 {[%emt 0:00:10]} 25. Ra4 {[%emt 0:02:05]} Kf8 {[%emt 0:01:22]} 26. Kf3 {[%emt 0:11:44]} Rb8 {[%emt 0:05:55]} 27. Rb4 {[%emt 0:02:33]} Ra8 {[%emt 0:00:11]} 28. Bc5+ {[%emt 0:02:37]} Ke8 {[%emt 0:00:17]} 29. Rb6 {[%emt 0:00:34]} Bc4 {[%emt 0:01:05]} 30. Bb4 {[%emt 0:00:43]} Ba6 {[%emt 0:01:27]} 31. Ke3 {[%emt 0:00:57]} Bc8 {[%emt 0:01:37]} 32. Kd4 {[%emt 0:01:08]} Kd7 {[%emt 0:00:42]} 33. g3 {[%emt 0:02:55]} g6 {[%emt 0:00:05]} 34. g4 {[%emt 0:01:55]} Ba6 {[%emt 0:01:09]} 35. f5 {[%emt 0:01:28]} Bc8 {[%emt 0:03:35]} 36. fxe6+ {[%emt 0:01:31]} fxe6 {[%emt 0:00:05]} 37. Rd6+ {[%emt 0:01:24]} Ke8 {[%emt 0:02:30]} 38. g5 {[%emt 0:01:17]} Ra7 {[%emt 0:02:24]} 39. Kc5 {[%emt 0:01:54]} Rc7+ {[%emt 0:01:19]} 40. Kb6 {[%emt 0:01:13]} Rb7+ {[%emt 0:00:10]} 41. Kc6 {[%emt 0:01:01]} Ra7 {[%emt 0:00:17]} 42. Kb5 {[%emt 0:01:13]} Rb7+ {[%emt 0:00:13]} 43. Rb6 {[%emt 0:01:02]} Kd7 {[%emt 0:06:44]} 44. Bd6 {[%emt 0:03:37]} Ra7 {[%emt 0:00:04]} 45. Bb8 {[%emt 0:00:59]} Rb7 {[%emt 0:00:22]} 46. a6 {[%emt 0:01:16]} Rxb6+ {[%emt 0:01:02]} 47. Kxb6 {[%emt 0:00:03]} Bxa6 {[%emt 0:00:19]} 48. Kxa6 {[%emt 0:00:08]} Kc6 {[%emt 0:00:02]} 49. Bd6 {[%emt 0:01:22]} d4 {[%emt 0:00:30]} 50. cxd4 {[%emt 0:00:40]} Kd5 {[%emt 0:00:02]} 51. Bc5 {[%emt 0:00:10]} Ke4 {[%emt 0:00:05]} 52. Kb5 {[%emt 0:00:38]} Kf5 {[%emt 0:00:04]} 53. h4 {[%emt 0:00:24]} Kg4 {[%emt 0:00:11]} 54. d5 {[%emt 0:00:20]} exd5 {[%emt 0:00:15]} 55. e6 {[%emt 0:00:10]} Kxh4 {[%emt 0:00:05]} 56. e7 {[%emt 0:00:06]} Kxg5 {[%emt 0:00:08]} 57. e8=Q {[%emt 0:00:11]} d4 {[%emt 0:00:10]} 58. Bxd4 {[%emt 0:00:18]} Kh5 {[%emt 0:00:09]} 59. Be3 {[%emt 0:00:50]} Kg4 {[%emt 0:02:28]} 60. Qe4+ {[%emt 0:01:02]} Kh5 {[%emt 0:00:00]} 61. Qf4 {[%emt 0:00:23]} h6 {[%emt 0:00:00]} 62. Qxh6+ {[%emt 0:00:08]} Kg4 {[%emt 0:00:00]} 63. Qxg6+ {[%emt 0:00:20]} Kh3 {[%emt 0:00:00]} 64. Bf2 {[%emt 0:00:24]} Kh2 {[%emt 0:00:00]} 65. Qg3+ {[%emt 0:00:09]} Kh1 {[%emt 0:00:00]} 66. Qg1# {[%emt 0:00:05]} 1-0

[Event "Kragero Resort Chess B 2019"]
[Site "Kragero"]
[Date "2019.02.23"]
[Round "7.1"]
[White "Arntsen, Frode"]
[Black "Wright, Haakon"]
[Result "1/2-1/2"]
[ECO "E12"]
[WhiteElo "1718"]
[BlackElo "1750"]
[Annotator "NA"]
[PlyCount "48"]
[EventDate "2019.02.20"]
[EventType "swiss"]
[EventCountry "NOR"]
[SourceTitle "playchess.com"]
[Source "ChessBase"]
[SourceQuality "1"]
[TimeControl "5400+30"]

1. c4 {[%emt 0:00:00]} b6 {[%emt 0:00:00]} 2. Nf3 {[%emt 0:00:00]} Bb7 {[%emt 0:00:00]} 3. Nc3 {[%emt 0:01:14]} e6 {[%emt 0:00:00]} 4. d4 {[%emt 0:01:42]} Nf6 {[%emt 0:02:05]} 5. Bg5 {[%emt 0:03:39]} Bb4 {[%emt 0:00:44]} 6. e3 {[%emt 0:10:40]} O-O {[%emt 0:04:58]} 7. Be2 {[%emt 0:02:12]} d6 {[%emt 0:02:34]} 8. O-O {[%emt 0:00:44]} Bxc3 {[%emt 0:01:15]} 9. bxc3 {[%emt 0:00:09]} Nbd7 {[%emt 0:02:52]} 10. Nd2 {[%emt 0:04:48]} e5 {[%emt 0:04:54]} 11. Bf3 {[%emt 0:03:24]} Bxf3 {[%emt 0:03:03]} 12. Qxf3 {[%emt 0:00:30]} h6 {[%emt 0:06:34]} 13. Bh4 {[%emt 0:00:10]} Qc8 {[%emt 0:04:04]} 14. Ne4 {[%emt 0:12:37]} Nxe4 {[%emt 0:02:30]} 15. Qxe4 {[%emt 0:00:05]} f5 {[%emt 0:07:18]} 16. Qd5+ {[%emt 0:02:33]} Kh8 {[%emt 0:01:51]} 17. f4 {[%emt 0:02:10]} e4 {[%emt 0:06:24]} 18. h3 {[%emt 0:10:22]} Nf6 {[%emt 0:08:49]} 19. Qc6 {[%emt 0:02:39]} Qd7 {[%emt 0:02:22]} 20. Qxd7 {[%emt 0:00:42]} Nxd7 {[%emt 0:00:02]} 21. a4 {[%emt 0:01:46]} a5 {[%emt 0:04:20]} 22. Kf2 {[%emt 0:01:56]} Kg8 {[%emt 0:04:27]} 23. Be7 {[%emt 0:02:27]} c5 24. Bh4 {[%emt 0:00:03]} Kf7 1/2-1/2

[Event "Kragero Resort Chess B 2019"]
[Site "Kragero"]
[Date "2019.02.23"]
[Round "7.2"]
[White "Halvorsen, Benjamin"]
[Black "Magnusdottir, Veronika Steinunn"]
[Result "1-0"]
[ECO "C00"]
[WhiteElo "1683"]
[BlackElo "1740"]
[Annotator "NA"]
[PlyCount "51"]
[EventDate "2019.02.20"]
[EventType "swiss"]
[EventCountry "NOR"]
[SourceTitle "playchess.com"]
[Source "ChessBase"]
[SourceQuality "1"]
[TimeControl "5400+30"]

1. e4 {[%emt 0:00:00]} c5 {[%emt 0:03:03]} 2. Nf3 {[%emt 0:00:00]} e6 {[%emt 0:00:28]} 3. g3 {[%emt 0:00:00]} Nc6 {[%emt 0:00:45]} 4. Bg2 {[%emt 0:00:00]} d6 {[%emt 0:01:10]} 5. c3 {[%emt 0:00:11]} Nf6 {[%emt 0:00:12]} 6. Qe2 {[%emt 0:00:08]} Qc7 {[%emt 0:09:31]} 7. O-O {[%emt 0:01:54]} Be7 {[%emt 0:03:53]} 8. d4 {[%emt 0:02:03]} cxd4 {[%emt 0:01:12]} 9. Nxd4 {[%emt 0:00:28]} Bd7 {[%emt 0:03:39]} 10. Na3 {[%emt 0:03:52]} O-O {[%emt 0:11:44]} 11. Rd1 {[%emt 0:01:09]} Rfe8 {[%emt 0:08:01]} 12. Bg5 {[%emt 0:05:31]} d5 {[%emt 0:05:09]} 13. Nxc6 {[%emt 0:13:32]} Bxc6 {[%emt 0:06:24]} 14. e5 {[%emt 0:05:26]} Ne4 {[%emt 0:00:30]} 15. Bxe7 {[%emt 0:00:30]} Qxe7 {[%emt 0:05:36]} 16. Nc2 {[%emt 0:04:42]} b6 {[%emt 0:16:39]} 17. Nd4 {[%emt 0:09:30]} Bb7 {[%emt 0:01:48]} 18. Nb5 {[%emt 0:13:34]} Nc5 {[%emt 0:01:24]} 19. Nd6 {[%emt 0:03:34]} Ba6 {[%emt 0:00:30]} 20. Qe3 {[%emt 0:00:30]} Red8 {[%emt 0:00:30]} 21. b4 {[%emt 0:08:31]} Ne4 {[%emt 0:04:12]} 22. Bxe4 {[%emt 0:01:50]} dxe4 {[%emt 0:00:24]} 23. Qxe4 {[%emt 0:00:21]} f6 {[%emt 0:01:20]} 24. b5 {[%emt 0:00:32]} fxe5 {[%emt 0:01:58]} 25. bxa6 {[%emt 0:00:15]} Rxd6 {[%emt 0:00:18]} 26. Qxa8+ {[%emt 0:00:09]} 1-0

[Event "Kragero Resort Chess B 2019"]
[Site "Kragero"]
[Date "2019.02.23"]
[Round "7.3"]
[White "Rynning, Rune Kleiven"]
[Black "Manukyan, Hayk T."]
[Result "0-1"]
[ECO "B19"]
[WhiteElo "1542"]
[BlackElo "1806"]
[Annotator "NA"]
[PlyCount "52"]
[EventDate "2019.02.20"]
[EventType "swiss"]
[EventCountry "NOR"]
[SourceTitle "playchess.com"]
[Source "ChessBase"]
[SourceQuality "1"]
[TimeControl "5400+30"]

1. e4 {[%emt 0:00:00]} c6 {[%emt 0:00:00]} 2. d4 {[%emt 0:00:00]} d5 {[%emt 0:00:00]} 3. Nc3 {[%emt 0:00:00]} dxe4 {[%emt 0:00:00]} 4. Nxe4 {[%emt 0:00:05]} Bf5 {[%emt 0:00:00]} 5. Ng3 {[%emt 0:00:13]} Bg6 {[%emt 0:00:00]} 6. h4 {[%emt 0:00:38]} h6 {[%emt 0:00:00]} 7. h5 {[%emt 0:00:11]} Bh7 {[%emt 0:00:00]} 8. Nf3 {[%emt 0:00:09]} Nd7 {[%emt 0:00:00]} 9. Bd3 {[%emt 0:00:24]} Bxd3 {[%emt 0:00:00]} 10. Qxd3 {[%emt 0:00:09]} e6 {[%emt 0:00:00]} 11. c4 {[%emt 0:05:17]} Bb4+ {[%emt 0:00:03]} 12. Bd2 {[%emt 0:00:24]} Bxd2+ {[%emt 0:00:08]} 13. Qxd2 {[%emt 0:05:19]} Ngf6 {[%emt 0:00:08]} 14. Qb4 {[%emt 0:07:15]} Qc7 {[%emt 0:03:17]} 15. O-O {[%emt 0:00:54]} c5 {[%emt 0:01:50]} 16. Qc3 {[%emt 0:02:26]} O-O {[%emt 0:01:19]} 17. Rac1 {[%emt 0:03:17]} Rfd8 {[%emt 0:01:52]} 18. dxc5 {[%emt 0:02:17]} Nxc5 {[%emt 0:01:03]} 19. b4 {[%emt 0:01:17]} Nce4 {[%emt 0:01:04]} 20. Nxe4 {[%emt 0:00:22]} Nxe4 {[%emt 0:00:03]} 21. Qe3 {[%emt 0:05:19]} Nf6 {[%emt 0:00:53]} 22. Ne5 {[%emt 0:05:51]} Nxh5 {[%emt 0:01:49]} 23. c5 {[%emt 0:05:22]} Rd5 {[%emt 0:19:47]} 24. Nc4 {[%emt 0:00:48]} Qf4 {[%emt 0:01:20]} 25. Qxf4 {[%emt 0:03:27]} Nxf4 {[%emt 0:00:03]} 26. Rcd1 {[%emt 0:01:34]} Ne2+ {[%emt 0:00:11]} 0-1

[Event "Kragero Resort Chess B 2019"]
[Site "Kragero"]
[Date "2019.02.23"]
[Round "7.4"]
[White "Tumanyan, Simon H."]
[Black "Hausken, Andreas Skrede"]
[Result "1-0"]
[ECO "B40"]
[WhiteElo "1704"]
[BlackElo "1752"]
[Annotator "NA"]
[PlyCount "143"]
[EventDate "2019.02.20"]
[EventType "swiss"]
[EventCountry "NOR"]
[SourceTitle "playchess.com"]
[Source "ChessBase"]
[SourceQuality "1"]
[TimeControl "5400+30"]

1. e4 {[%emt 0:00:00]} c5 {[%emt 0:00:00]} 2. Nf3 {[%emt 0:00:00]} e6 {[%emt 0:00:00]} 3. c3 {[%emt 0:00:00]} Nf6 {[%emt 0:03:31]} 4. Bd3 {[%emt 0:01:12]} Nc6 {[%emt 0:00:47]} 5. e5 {[%emt 0:00:43]} Nd5 {[%emt 0:00:12]} 6. Be4 {[%emt 0:01:46]} d6 {[%emt 0:04:51]} 7. exd6 {[%emt 0:03:32]} Qxd6 {[%emt 0:01:25]} 8. O-O {[%emt 0:00:34]} Be7 {[%emt 0:00:30]} 9. d4 {[%emt 0:00:25]} cxd4 {[%emt 0:04:23]} 10. Nxd4 {[%emt 0:00:07]} Nxd4 {[%emt 0:00:23]} 11. Qxd4 {[%emt 0:00:15]} Nf6 {[%emt 0:05:52]} 12. Qxd6 {[%emt 0:01:57]} Bxd6 {[%emt 0:00:12]} 13. Bf3 {[%emt 0:00:05]} O-O {[%emt 0:01:44]} 14. Rd1 {[%emt 0:03:02]} Bc7 {[%emt 0:03:36]} 15. Na3 {[%emt 0:00:27]} a6 {[%emt 0:00:59]} 16. Be3 {[%emt 0:01:46]} e5 {[%emt 0:03:09]} 17. c4 {[%emt 0:11:45]} e4 {[%emt 0:02:11]} 18. Be2 {[%emt 0:00:30]} Be6 {[%emt 0:01:09]} 19. Bd4 {[%emt 0:03:43]} Ng4 {[%emt 0:04:15]} 20. h3 {[%emt 0:01:02]} Ne5 {[%emt 0:00:18]} 21. b3 {[%emt 0:01:01]} Rfd8 {[%emt 0:01:02]} 22. Nc2 {[%emt 0:00:16]} f5 {[%emt 0:02:33]} 23. Be3 {[%emt 0:08:50]} Bf7 {[%emt 0:12:23]} 24. Nd4 {[%emt 0:01:19]} g6 {[%emt 0:00:35]} 25. c5 {[%emt 0:02:06]} Rd5 {[%emt 0:02:48]} 26. f4 {[%emt 0:06:02]} exf3 {[%emt 0:05:39]} 27. Nxf3 {[%emt 0:00:26]} Rad8 {[%emt 0:00:34]} 28. Rxd5 {[%emt 0:01:06]} Rxd5 {[%emt 0:00:54]} 29. Rc1 {[%emt 0:11:47]} Nd3 {[%emt 0:02:16]} 30. Rc3 {[%emt 0:05:30]} Nf4 {[%emt 0:04:36]} 31. Bf1 {[%emt 0:03:58]} Rd1 {[%emt 0:07:11]} 32. Rc2 {[%emt 0:04:44]} Bd5 {[%emt 0:05:39]} 33. Kf2 {[%emt 0:05:04]} Be4 {[%emt 0:05:08]} 34. Bc4+ {[%emt 0:02:23]} Kf8 {[%emt 0:01:21]} 35. Rd2 {[%emt 0:00:21]} Rxd2+ {[%emt 0:05:30]} 36. Bxd2 {[%emt 0:02:06]} Nd3+ {[%emt 0:00:39]} 37. Bxd3 {[%emt 0:03:58]} Bxd3 {[%emt 0:00:42]} 38. Ng5 {[%emt 0:00:12]} Kg8 {[%emt 0:00:16]} 39. Bc3 {[%emt 0:01:30]} Bb5 {[%emt 0:01:45]} 40. Ne6 {[%emt 0:02:31]} Bb8 {[%emt 0:00:15]} 41. Nd8 {[%emt 0:00:43]} Ba7 {[%emt 0:00:33]} 42. b4 {[%emt 0:00:56]} Bc4 {[%emt 0:06:03]} 43. Nxb7 {[%emt 0:01:18]} Bxa2 {[%emt 0:00:09]} 44. Nd6 {[%emt 0:03:23]} a5 {[%emt 0:01:25]} 45. Nb5 {[%emt 0:00:44]} axb4 {[%emt 0:00:56]} 46. Bxb4 {[%emt 0:00:01]} Bb8 {[%emt 0:00:19]} 47. c6 {[%emt 0:00:07]} g5 {[%emt 0:01:39]} 48. c7 {[%emt 0:00:11]} Bxc7 {[%emt 0:00:03]} 49. Nxc7 {[%emt 0:00:03]} g4 {[%emt 0:00:07]} 50. h4 {[%emt 0:00:38]} f4 {[%emt 0:00:23]} 51. Bd6 {[%emt 0:00:42]} f3 {[%emt 0:00:17]} 52. gxf3 {[%emt 0:01:24]} gxf3 {[%emt 0:00:05]} 53. Kxf3 {[%emt 0:00:02]} Kf7 {[%emt 0:00:11]} 54. Kf4 {[%emt 0:00:06]} Kg6 {[%emt 0:00:43]} 55. Kg4 {[%emt 0:00:23]} Bc4 {[%emt 0:00:15]} 56. h5+ {[%emt 0:01:22]} Kf7 {[%emt 0:00:15]} 57. Kg5 {[%emt 0:00:19]} Bb3 {[%emt 0:00:52]} 58. Nb5 {[%emt 0:00:20]} Ba2 {[%emt 0:00:35]} 59. Nd4 {[%emt 0:00:24]} Bb1 {[%emt 0:00:18]} 60. Be5 {[%emt 0:00:34]} Bd3 {[%emt 0:00:51]} 61. Nf3 {[%emt 0:00:32]} Be4 {[%emt 0:00:43]} 62. Nh2 {[%emt 0:02:06]} Bc2 {[%emt 0:00:22]} 63. Ng4 {[%emt 0:00:12]} Ke6 {[%emt 0:00:47]} 64. Bb2 {[%emt 0:00:17]} Bb1 {[%emt 0:00:29]} 65. Nf6 {[%emt 0:00:36]} Kd6 {[%emt 0:00:41]} 66. Kh6 {[%emt 0:00:26]} Kc5 {[%emt 0:00:11]} 67. Nxh7 {[%emt 0:00:09]} Kd5 {[%emt 0:00:09]} 68. Ng5 {[%emt 0:00:12]} Bf5 {[%emt 0:00:11]} 69. Kg7 {[%emt 0:00:10]} Bc2 {[%emt 0:00:09]} 70. h6 {[%emt 0:00:04]} Bb1 {[%emt 0:00:06]} 71. Nh7 {[%emt 0:00:18]} Ke6 {[%emt 0:00:08]} 72. Nf8+ {[%emt 0:01:23]} 1-0